fUST/lending_fUST_20250809
["ID","MTS","AMOUNT","RATE_DAILY","PERIOD"]
[378100053,1754730737658,-176.96863688,0.00021491,2]
[378100054,1754730739707,-294.12774228,0.00021481,3]
[378100055,1754730743479,-180.40216096,0.00021481,3]
[378100056,1754730745729,-49.48009676,0.00021481,3]
[378100057,1754730745752,-250.51990324,0.00021481,10]
[378100058,1754730750523,-297.25404418,0.00021481,10]
[378100059,1754730752824,-378.46327355,0.00021481,10]
[378100060,1754730752872,1163.55274042,0.000214,2]
[378100061,1754730759348,-181.18198389,0.00021481,10]
[378100062,1754730764708,-156.34261991,0.00021481,10]
[378100063,1754730765584,177.15821706,0.000214,2]
[378100066,1754730767108,-186.57617012,0.0002149,2]
[378100070,1754730768785,-114.61331616,0.0002149,2]
[378100071,1754730768810,-44.78062145,0.0002149,2]
[378100072,1754730770241,-300.0,0.0002149,2]
[378100073,1754730774802,-155.21937855,0.0002149,2]
[378100074,1754730774826,-9.08494337,0.0002149,2]
[378100075,1754730777639,280.98427165,0.00021481,10]
[378100076,1754730779317,-393.77642554,0.00021481,10]
[378100077,1754730795138,374.76069719,0.0002145,2]
[378100078,1754730813237,215.0,0.00021,2]
[378100079,1754730885792,510.49200194,0.00021047,2]
[378100080,1754730887493,1547.64085733,0.00019473,2]
[378100081,1754730887990,1225.36317844,0.00021047,2]
[378100082,1754730888012,816.60482931,0.00021047,2]
[378100083,1754730890298,4589.83358943,0.00021047,2]
[378100084,1754730899288,5000.0,0.0002145,2]
[378100085,1754730906469,5581.36130784,0.000199,2]
[378100086,1754730911355,278.268995,0.00020493,2]
[378100087,1754730929585,843.14248162,0.000214,2]
[378100088,1754730948105,3847.98588222,0.0002145,2]
[378100089,1754730964826,1152.01411778,0.0002145,2]
[378100090,1754730967633,6442.00447885,0.00021381,2]
[378100091,1754730980218,3748.78431795,0.0002145,2]
[378100092,1754730980245,1251.21568205,0.0002145,2]
[378100095,1754731124093,5656.8358416,0.000199,2]
[378100096,1754731136464,3320.85110769,0.0002145,2]
[378100097,1754731152497,575.080928,0.00013699,2]
[378100098,1754731152711,575.080928,0.00020187,2]
[378100099,1754731157842,252.33626998,0.0002138,2]
[378100103,1754731167529,1018.10864792,0.0002139,2]
[378100105,1754731189018,1926.68328499,0.00019473,2]
[378100106,1754731189992,562.09498776,0.00021402,2]
[378100107,1754731214698,159.11835374,0.0002138,2]
[378100108,1754731281210,466.23706779,0.00021254,2]
[378100109,1754731307842,5816.62052009,0.000199,2]
[378100110,1754731392317,10719.73638039,0.00020487,2]
[378100111,1754731392340,14180.26361961,0.00020487,2]
[378100112,1754731404287,5000.0,0.0002145,2]
[378100113,1754731420188,5000.0,0.0002145,2]
[378100114,1754731436053,5000.0,0.0002145,2]
[378100115,1754731438873,3119.73638039,0.00019664,2]
[378100116,1754731438895,1880.26361961,0.00019664,2]
[378100119,1754731451972,5000.0,0.0002145,2]
[378100120,1754731453738,160.54004228,0.00022473,30]
[378100121,1754731490442,1134.35583538,0.00019473,2]
[378100122,1754731502298,6338.18520324,0.000199,2]
[378100125,1754731672356,17947.19534177,0.00018,2]
[378100126,1754731672378,11754.55828222,0.00018,2]
[378100127,1754731676455,1311.17805901,0.00018,2]
[378100129,1754731689980,890.84506693,0.00021388,2]
[378100130,1754731694615,6476.35864632,0.000199,2]
[378100131,1754731696298,416.11066056,0.00010618,2]
[378100132,1754731698247,11409.22188954,0.000125,2]
[378100136,1754731707161,41.72739542,0.000176,2]
[378100137,1754731707184,1793.29421911,0.000176,2]
[378100138,1754731711587,283.35367783,0.0001,2]
[378100140,1754731712013,6997.53295185,0.0002,2]
[378100141,1754731715005,4998.52482359,0.0002,2]
[378100142,1754731717003,18227.29432762,0.00017,2]
[378100143,1754731717027,32300.0,0.00017,2]
[378100144,1754731717050,5957.60803617,0.00017,2]
[378100145,1754731719953,14664.89511334,0.00018,2]
[378100148,1754731721397,210.01147416,0.000149,2]
[378100150,1754731726623,10000.0,0.00031722,30]
[378100151,1754731729188,1000.8003712,0.0002,2]
[378100154,1754731732578,5000.0,0.0002145,2]
[378100158,1754731749785,5466.68500513,0.00020483,2]
[378100159,1754731749807,4533.31499487,0.00020483,2]
[378100160,1754731758718,167.6109182,0.00021379,2]
[378100161,1754731759213,167.6109182,0.00021382,2]
[378100162,1754731760067,167.6109182,0.00021385,2]
[378100163,1754731760541,167.6109182,0.00021388,2]
[378100167,1754731792105,1741.61754137,0.0001935,2]
[378100171,1754731795177,5236.22839228,0.00021379,2]
[378100200,1754731832345,-374.72999184,0.00021472,2]
[378100201,1754731832354,-300.0,0.00021479,2]
[378100203,1754731832363,-300.0,0.00021479,2]
[378100205,1754731832372,-300.0,0.00021479,2]
[378100207,1754731832382,-300.0,0.00021479,2]
[378100209,1754731832391,-300.0,0.00021479,2]
[378100211,1754731832400,-1200.0,0.00021479,2]
[378100213,1754731832409,-1200.0,0.0002148,2]
[378100215,1754731832418,-611.33,0.00021481,3]
[378100219,1754731832428,-305.67,0.00021481,3]
[378100222,1754731832437,-152.83,0.00021481,3]
[378100225,1754731832447,-458.52,0.00021481,3]
[378100228,1754731832456,-970.47646059,0.00021481,10]
[378100231,1754731832473,-983.98353941,0.00021481,10]
[378100233,1754731832482,-50000.0,0.00021481,2]
[378100235,1754731832491,-1189.13276576,0.00021488,5]
[378100237,1754731832506,-9439.86723424,0.00021488,5]
[378100239,1754731832516,-490.91505663,0.0002149,2]
[378100241,1754731832525,-500.0,0.0002149,2]
[378100243,1754731832535,-500.0,0.0002149,2]
[378100245,1754731832544,-500.0,0.0002149,2]
[378100247,1754731832553,-500.0,0.0002149,2]
[378100249,1754731832563,-500.0,0.0002149,2]
[378100250,1754731832572,-500.0,0.0002149,2]
[378100252,1754731832582,-648.9316352,0.0002149,2]
[378100254,1754731832592,-167.99423304,0.0002149,2]
[378100256,1754731832601,-468.67767798,0.0002149,2]
[378100258,1754731832610,-500.0,0.0002149,2]
[378100260,1754731832620,-500.0,0.0002149,2]
[378100262,1754731832629,-500.0,0.0002149,2]
[378100264,1754731832638,-500.0,0.0002149,2]
[378100266,1754731832647,-500.0,0.0002149,2]
[378100268,1754731832657,-500.0,0.0002149,2]
[378100270,1754731832666,-500.0,0.0002149,2]
[378100272,1754731832676,-500.0,0.0002149,2]
[378100274,1754731832685,-500.0,0.0002149,2]
[378100276,1754731832695,-500.0,0.0002149,2]
[378100278,1754731832704,-500.0,0.0002149,2]
[378100280,1754731832713,-500.0,0.0002149,2]
[378100282,1754731832723,-500.0,0.0002149,2]
[378100284,1754731832733,-500.0,0.0002149,2]
[378100286,1754731832742,-176.79528223,0.0002149,2]
[378100287,1754731832751,-500.0,0.0002149,2]
[378100288,1754731832761,-300.0,0.0002149,2]
[378100290,1754731832770,-1276.51399611,0.0002149,2]
[378100292,1754731832779,-3212.96366523,0.00021491,2]
[378100298,1754731838141,-663.27978423,0.00021491,2]
[378100299,1754731838225,-1764.01300076,0.00021491,2]
[378100300,1754731838235,-46395.71109697,0.00021491,2]
[378100301,1754731838246,-4533.80382641,0.00021491,2]
[378100302,1754731838332,-279704.75711795,0.00021491,2]
[378100303,1754731838342,-1276.51399608,0.00021572,2]
[378100304,1754731838352,-160.0,0.0002159,2]
[378100305,1754731838361,-500.0,0.00021653,2]
[378100306,1754731838371,-1276.51399608,0.00021654,2]
[378100307,1754731838380,-6476.35864603,0.00021655,2]
[378100308,1754731838390,-1276.51399608,0.00021735,2]
[378100309,1754731838399,-7251.12107371,0.00021781,2]
[378100310,1754731838408,-151.0,0.000218,3]
[378100311,1754731838417,-151.0,0.000218,3]
[378100312,1754731838427,-154.05361407,0.000218,3]
[378100313,1754731838436,-151.0,0.000218,3]
[378100314,1754731838446,-151.0,0.000218,3]
[378100315,1754731838455,-151.0,0.000218,3]
[378100316,1754731838464,-151.0,0.000218,3]
[378100317,1754731838473,-152.14721938,0.000218,3]
[378100318,1754731838482,-151.0,0.000218,3]
[378100319,1754731838492,-267.26452582,0.000218,3]
[378100320,1754731838502,-500.0,0.000218,3]
[378100321,1754731838512,-151.0,0.000218,3]
[378100322,1754731838521,-152.63238369,0.000218,3]
[378100323,1754731838530,-153.0496871,0.000218,3]
[378100324,1754731838540,-151.0,0.000218,3]
[378100325,1754731838551,-151.0,0.000218,3]
[378100326,1754731838560,-151.0,0.000218,2]
[378100327,1754731838570,-275.32081735,0.000218,3]
[378100328,1754731838581,-151.0,0.000218,3]
[378100329,1754731838591,-151.0,0.000218,3]
[378100330,1754731838600,-151.0,0.000218,3]
[378100331,1754731838611,-500.0,0.000218,3]
[378100332,1754731838620,-151.0,0.000218,3]
[378100333,1754731838630,-151.64454431,0.000218,2]
[378100334,1754731838640,-151.0,0.000218,3]
[378100335,1754731838651,-500.0,0.000218,3]
[378100336,1754731838661,-151.0,0.000218,3]
[378100337,1754731838670,-1276.51399608,0.00021817,2]
[378100338,1754731838679,-350.0,0.00021842,2]
[378100339,1754731838691,-2514.29,0.000219,2]
[378100340,1754731838700,-151.0,0.000219,3]
[378100341,1754731838710,-200.0,0.00021909,15]
[378100342,1754731838719,-434.48716684,0.00021917,2]
[378100343,1754731838728,-460.0,0.00021917,2]
[378100344,1754731838738,-460.0,0.00021917,2]
[378100345,1754731838747,-542.38311003,0.00021917,2]
[378100346,1754731838758,-413.45359596,0.00021917,2]
[378100347,1754731838768,-460.0,0.00021917,2]
[378100348,1754731838778,-460.0,0.00021917,2]
[378100349,1754731838787,-273.1406055,0.00021917,2]
[378100350,1754731838797,-460.0,0.00021917,2]
[378100351,1754731838806,-460.0,0.00021917,2]
[378100352,1754731838816,-540.44,0.00021917,2]
[378100353,1754731838825,-460.0,0.00021917,2]
[378100354,1754731838834,-460.0,0.00021917,2]
[378100355,1754731838844,-460.0,0.00021917,2]
[378100356,1754731838854,-460.0,0.00021917,2]
[378100357,1754731838864,-366.22171395,0.00021917,2]
[378100358,1754731838873,-462.1903293,0.00021917,2]
[378100359,1754731838884,-353.0648171,0.00021917,2]
[378100360,1754731838893,-460.0,0.00021917,2]
[378100361,1754731838903,-460.0,0.00021917,2]
[378100362,1754731838914,-460.74962368,0.00021917,2]
[378100363,1754731838923,-460.0,0.00021917,2]
[378100364,1754731838933,-460.0,0.00021917,2]
[378100365,1754731838944,-460.0,0.00021917,2]
[378100366,1754731838954,-460.0,0.00021917,2]
[378100367,1754731838963,-466.81557566,0.00021917,2]
[378100368,1754731838974,-460.0,0.00021917,2]
[378100369,1754731838983,-460.0,0.00021917,2]
[378100370,1754731838993,-460.0,0.00021917,2]
[378100371,1754731839003,-328.28802198,0.00021917,2]
[378100372,1754731839012,-460.0,0.00021917,2]
[378100373,1754731839021,-460.0,0.00021917,2]
[378100374,1754731839031,-460.0,0.00021917,2]
[378100375,1754731839041,-460.0,0.00021917,2]
[378100376,1754731839050,-467.83166063,0.00021917,2]
[378100377,1754731839059,-460.0,0.00021917,2]
[378100378,1754731839069,-460.0,0.00021917,2]
[378100379,1754731839078,-460.0,0.00021917,2]
[378100380,1754731839087,-460.0,0.00021917,2]
[378100381,1754731839097,-460.0,0.00021917,2]
[378100382,1754731839107,-460.0,0.00021917,2]
[378100383,1754731839116,-460.0,0.00021917,2]
[378100384,1754731839125,-460.0,0.00021917,2]
[378100385,1754731839138,-462.27952878,0.00021917,2]
[378100386,1754731839158,-460.0,0.00021917,2]
[378100387,1754731839167,-460.0,0.00021917,2]
[378100388,1754731839176,-460.0,0.00021917,2]
[378100389,1754731839186,-460.0,0.00021917,2]
[378100390,1754731839198,-460.0,0.00021917,2]
[378100391,1754731839207,-460.0,0.00021917,2]
[378100392,1754731839216,-460.0,0.00021917,2]
[378100393,1754731839226,-493.5539849,0.00021917,2]
[378100394,1754731839235,-460.0,0.00021917,2]
[378100395,1754731839244,-460.0,0.00021917,2]
[378100396,1754731839253,-460.0,0.00021917,2]
[378100397,1754731839263,-500.0,0.00021917,2]
[378100398,1754731839271,-695.99,0.00021917,2]
[378100399,1754731839418,-220.25240884,0.00021917,2]
[378100400,1754731839427,-460.0,0.00021917,2]
[378100401,1754731839436,-460.0,0.00021917,2]
[378100402,1754731839445,-491.79,0.00021917,2]
[378100403,1754731839455,-460.0,0.00021917,2]
[378100404,1754731839465,-460.0,0.00021917,2]
[378100405,1754731839474,-460.0,0.00021917,2]
[378100406,1754731839483,-627.56,0.00021917,2]
[378100407,1754731839492,-460.0,0.00021917,2]
[378100408,1754731839501,-460.0,0.00021917,2]
[378100409,1754731839511,-460.0,0.00021917,2]
[378100410,1754731839520,-460.0,0.00021917,2]
[378100411,1754731839529,-460.0,0.00021917,2]
[378100412,1754731839538,-460.0,0.00021917,2]
[378100413,1754731839547,-460.0,0.00021917,2]
[378100414,1754731839557,-460.0,0.00021917,2]
[378100415,1754731839566,-460.0,0.00021917,2]
[378100416,1754731839575,-460.0,0.00021917,2]
[378100417,1754731839584,-460.0,0.00021917,2]
[378100418,1754731839593,-460.0,0.00021917,2]
[378100419,1754731839603,-460.0,0.00021917,2]
[378100420,1754731839612,-460.0,0.00021917,2]
[378100421,1754731839622,-460.0,0.00021917,2]
[378100422,1754731839632,-462.18303735,0.00021917,2]
[378100423,1754731839642,-460.0,0.00021917,2]
[378100424,1754731839652,-460.0,0.00021917,2]
[378100425,1754731839661,-475.86284599,0.00021917,2]
[378100426,1754731839670,-460.0,0.00021917,2]
[378100427,1754731839679,-460.0,0.00021917,2]
[378100428,1754731839689,-460.0,0.00021917,2]
[378100429,1754731839698,-460.0,0.00021917,2]
[378100430,1754731839707,-811.31,0.00021917,2]
[378100431,1754731839716,-151.0,0.00021917,2]
[378100432,1754731839726,-460.0,0.00021917,2]
[378100433,1754731839738,-460.0,0.00021917,2]
[378100434,1754731839747,-460.0,0.00021917,2]
[378100435,1754731839757,-460.0,0.00021917,2]
[378100436,1754731839766,-461.25198803,0.00021917,2]
[378100437,1754731839776,-460.0,0.00021917,2]
[378100438,1754731839786,-464.59677058,0.00021917,2]
[378100439,1754731839795,-460.0,0.00021917,2]
[378100440,1754731839805,-460.0,0.00021917,2]
[378100441,1754731839815,-460.0,0.00021917,2]
[378100442,1754731839825,-460.0,0.00021917,2]
[378100443,1754731839834,-460.0,0.00021917,2]
[378100444,1754731839845,-460.0,0.00021917,2]
[378100445,1754731839855,-460.0,0.00021917,2]
[378100446,1754731839864,-460.0,0.00021917,2]
[378100447,1754731839874,-460.0,0.00021917,2]
[378100448,1754731839883,-460.0,0.00021917,2]
[378100449,1754731839894,-460.0,0.00021917,2]
[378100450,1754731839904,-460.0,0.00021917,2]
[378100451,1754731839914,-460.0,0.00021917,2]
[378100452,1754731839924,-460.0,0.00021917,2]
[378100454,1754731839933,-462.74713378,0.00021917,2]
[378100456,1754731839942,-460.0,0.00021917,2]
[378100457,1754731839951,-460.0,0.00021917,2]
[378100458,1754731839960,-473.8932571,0.00021917,2]
[378100459,1754731839971,-460.0,0.00021917,2]
[378100460,1754731839980,-460.0,0.00021917,2]
[378100461,1754731839990,-460.0,0.00021917,2]
[378100462,1754731840000,-500.0,0.00021917,2]
[378100463,1754731840010,-500.0,0.00021917,2]
[378100464,1754731840020,-500.0,0.00021917,2]
[378100465,1754731840030,-500.0,0.00021917,2]
[378100466,1754731840039,-500.0,0.00021917,2]
[378100467,1754731840049,-500.0,0.00021917,2]
[378100468,1754731840058,-460.0,0.00021917,2]
[378100469,1754731840068,-500.0,0.00021917,2]
[378100470,1754731840077,-295.94,0.00021917,2]
[378100471,1754731840088,-460.0,0.00021917,2]
[378100472,1754731840098,-513.179356,0.00021917,2]
[378100473,1754731840107,-460.0,0.00021917,2]
[378100474,1754731840117,-460.0,0.00021917,2]
[378100475,1754731840127,-460.0,0.00021917,2]
[378100476,1754731840138,-460.0,0.00021917,2]
[378100477,1754731840149,-462.11245496,0.00021917,2]
[378100478,1754731840159,-513.179356,0.00021917,2]
[378100479,1754731840169,-460.0,0.00021917,2]
[378100480,1754731840179,-460.0,0.00021917,2]
[378100481,1754731840192,-460.0,0.00021917,2]
[378100482,1754731840203,-460.0,0.00021917,2]
[378100483,1754731840212,-460.0,0.00021917,2]
[378100484,1754731840222,-460.0,0.00021917,2]
[378100485,1754731840233,-460.0,0.00021917,2]
[378100486,1754731840243,-460.0,0.00021917,2]
[378100487,1754731840252,-460.0,0.00021917,2]
[378100488,1754731840262,-460.0,0.00021917,2]
[378100489,1754731840273,-460.0,0.00021917,2]
[378100490,1754731840283,-849.01,0.00021917,2]
[378100491,1754731840293,-629.02,0.00021917,2]
[378100492,1754731840303,-460.0,0.00021917,2]
[378100494,1754731840313,-460.0,0.00021917,2]
[378100495,1754731840323,-351.95889763,0.00021917,2]
[378100496,1754731840333,-460.0,0.00021917,2]
[378100497,1754731840343,-460.0,0.00021917,2]
[378100498,1754731840353,-466.47250328,0.00021917,2]
[378100499,1754731840363,-460.0,0.00021917,2]
[378100500,1754731840372,-460.0,0.00021917,2]
[378100501,1754731840382,-460.0,0.00021917,2]
[378100502,1754731840391,-798.7,0.00021917,2]
[378100503,1754731840400,-460.0,0.00021917,2]
[378100504,1754731840409,-460.0,0.00021917,2]
[378100505,1754731840418,-460.0,0.00021917,2]
[378100506,1754731840427,-961.93,0.00021917,2]
[378100507,1754731840437,-460.0,0.00021917,2]
[378100508,1754731840446,-460.0,0.00021917,2]
[378100509,1754731840455,-460.0,0.00021917,2]
[378100510,1754731840464,-460.0,0.00021917,2]
[378100511,1754731840473,-460.0,0.00021917,2]
[378100512,1754731840486,-601.13125307,0.00021917,2]
[378100513,1754731840495,-460.0,0.00021917,2]
[378100514,1754731840505,-460.0,0.00021917,2]
[378100515,1754731840515,-1005.29,0.00021917,2]
[378100516,1754731840525,-5272.4,0.00021917,2]
[378100517,1754731840535,-460.0,0.00021917,2]
[378100518,1754731840544,-460.0,0.00021917,2]
[378100519,1754731840553,-460.0,0.00021917,2]
[378100520,1754731840563,-1027.59,0.00021917,2]
[378100521,1754731840573,-460.0,0.00021917,2]
[378100522,1754731840582,-629.19,0.00021917,2]
[378100523,1754731840592,-460.0,0.00021917,2]
[378100524,1754731840602,-460.0,0.00021917,2]
[378100525,1754731840612,-497.4,0.00021917,2]
[378100526,1754731840622,-460.0,0.00021917,2]
[378100527,1754731840633,-460.0,0.00021917,2]
[378100528,1754731840643,-466.08563013,0.00021917,2]
[378100529,1754731840654,-511.99875021,0.00021917,2]
[378100530,1754731840664,-460.0,0.00021917,2]
[378100531,1754731840673,-460.0,0.00021917,2]
[378100532,1754731840683,-1509.57,0.00021917,2]
[378100533,1754731840692,-724.29,0.00021917,2]
[378100534,1754731840703,-460.0,0.00021917,2]
[378100535,1754731840712,-460.0,0.00021917,2]
[378100536,1754731840723,-1580.26,0.00021917,2]
[378100537,1754731840732,-460.0,0.00021917,2]
[378100538,1754731840742,-460.0,0.00021917,2]
[378100539,1754731840751,-460.0,0.00021917,2]
[378100540,1754731840762,-462.39,0.00021917,2]
[378100541,1754731840771,-460.0,0.00021917,2]
[378100542,1754731840780,-460.0,0.00021917,2]
[378100543,1754731840790,-460.0,0.00021917,2]
[378100544,1754731840799,-460.0,0.00021917,2]
[378100545,1754731840809,-151.0,0.00021917,2]
[378100546,1754731840818,-682.23,0.00021917,2]
[378100547,1754731840828,-460.0,0.00021917,2]
[378100548,1754731840838,-460.0,0.00021917,2]
[378100549,1754731840847,-460.0,0.00021917,2]
[378100550,1754731840857,-460.0,0.00021917,2]
[378100551,1754731840866,-460.0,0.00021917,2]
[378100552,1754731840876,-460.0,0.00021917,2]
[378100553,1754731840885,-460.0,0.00021917,2]
[378100554,1754731840895,-2318.76,0.00021917,2]
[378100555,1754731840905,-491.55,0.00021917,2]
[378100556,1754731840914,-740.83,0.00021917,2]
[378100557,1754731840924,-460.0,0.00021917,2]
[378100558,1754731840933,-460.0,0.00021917,2]
[378100559,1754731840945,-460.0,0.00021917,2]
[378100560,1754731840955,-460.0,0.00021917,2]
[378100561,1754731840965,-2167.21,0.00021917,2]
[378100562,1754731840975,-460.0,0.00021917,2]
[378100563,1754731840984,-460.0,0.00021917,2]
[378100564,1754731840994,-1521.98,0.00021917,2]
[378100565,1754731841003,-460.0,0.00021917,2]
[378100566,1754731841014,-460.0,0.00021917,2]
[378100567,1754731841027,-460.0,0.00021917,2]
[378100568,1754731841037,-460.0,0.00021917,2]
[378100569,1754731841047,-460.0,0.00021917,2]
[378100570,1754731841056,-460.0,0.00021917,2]
[378100571,1754731841066,-460.0,0.00021917,2]
[378100572,1754731841076,-236.90052705,0.00021917,2]
[378100573,1754731841086,-170.51,0.00021917,2]
[378100574,1754731841095,-460.0,0.00021917,2]
[378100575,1754731841105,-460.0,0.00021917,2]
[378100576,1754731841114,-460.0,0.00021917,2]
[378100577,1754731841124,-460.0,0.00021917,2]
[378100578,1754731841133,-463.22234592,0.00021917,2]
[378100579,1754731841143,-748.6,0.00021917,2]
[378100580,1754731841152,-460.0,0.00021917,2]
[378100581,1754731841161,-460.0,0.00021917,2]
[378100582,1754731841171,-460.0,0.00021917,2]
[378100583,1754731841180,-1612.36,0.00021917,2]
[378100584,1754731841192,-460.0,0.00021917,2]
[378100585,1754731841202,-941.63,0.00021917,2]
[378100586,1754731841211,-460.0,0.00021917,2]
[378100587,1754731841220,-460.0,0.00021917,2]
[378100588,1754731841231,-851.39,0.00021917,2]
[378100589,1754731841241,-486.14,0.00021917,2]
[378100590,1754731841251,-435.2873,0.00021917,2]
[378100591,1754731841261,-460.0,0.00021917,2]
[378100592,1754731841271,-486.58,0.00021917,2]
[378100593,1754731841281,-460.0,0.00021917,2]
[378100594,1754731841290,-460.0,0.00021917,2]
[378100595,1754731841300,-460.0,0.00021917,2]
[378100596,1754731841309,-844.82,0.00021917,2]
[378100597,1754731841319,-1800.21,0.00021917,2]
[378100598,1754731841329,-460.0,0.00021917,2]
[378100599,1754731841339,-460.0,0.00021917,2]
[378100600,1754731841348,-460.0,0.00021917,2]
[378100601,1754731841358,-643.2,0.00021917,2]
[378100602,1754731841367,-460.0,0.00021917,2]
[378100603,1754731841377,-460.0,0.00021917,2]
[378100604,1754731841386,-460.0,0.00021917,2]
[378100605,1754731841395,-460.0,0.00021917,2]
[378100606,1754731841404,-460.0,0.00021917,2]
[378100607,1754731841413,-460.0,0.00021917,2]
[378100608,1754731841422,-460.0,0.00021917,2]
[378100609,1754731841432,-1351.49,0.00021917,2]
[378100610,1754731841442,-466.44566688,0.00021917,2]
[378100611,1754731841451,-460.0,0.00021917,2]
[378100612,1754731841459,-540.39,0.00021917,2]
[378100613,1754731841469,-654.04,0.00021917,2]
[378100614,1754731841478,-461.77145001,0.00021917,2]
[378100615,1754731841488,-460.0,0.00021917,2]
[378100616,1754731841497,-466.51911329,0.00021917,2]
[378100617,1754731841506,-460.0,0.00021917,2]
[378100618,1754731841516,-471.5064121,0.00021917,2]
[378100619,1754731841525,-501.43,0.00021917,2]
[378100620,1754731841534,-460.0,0.00021917,2]
[378100621,1754731841544,-460.0,0.00021917,2]
[378100622,1754731841553,-460.0,0.00021917,2]
[378100623,1754731841563,-1059.68,0.00021917,2]
[378100624,1754731841573,-1113.92,0.00021917,2]
[378100625,1754731841583,-460.0,0.00021917,2]
[378100626,1754731841592,-460.0,0.00021917,2]
[378100627,1754731841602,-460.0,0.00021917,2]
[378100628,1754731841611,-460.0,0.00021917,2]
[378100629,1754731841621,-460.0,0.00021917,2]
[378100630,1754731841631,-1229.13,0.00021917,2]
[378100631,1754731841642,-253.50153366,0.00021917,2]
[378100632,1754731841652,-460.0,0.00021917,2]
[378100633,1754731841662,-460.0,0.00021917,2]
[378100634,1754731841671,-1197.06,0.00021917,2]
[378100635,1754731841680,-621.79,0.00021917,2]
[378100636,1754731841691,-460.0,0.00021917,2]
[378100637,1754731841701,-463.08723458,0.00021917,2]
[378100638,1754731841711,-460.0,0.00021917,2]
[378100639,1754731841722,-460.0,0.00021917,2]
[378100640,1754731841732,-460.0,0.00021917,2]
[378100641,1754731841741,-460.0,0.00021917,2]
[378100642,1754731841751,-463.07502882,0.00021917,2]
[378100643,1754731841762,-460.0,0.00021917,2]
[378100644,1754731841771,-460.0,0.00021917,2]
[378100645,1754731841782,-460.0,0.00021917,2]
[378100646,1754731841791,-460.0,0.00021917,2]
[378100647,1754731841802,-151.02283271,0.00021917,2]
[378100648,1754731841812,-1588.18,0.00021917,2]
[378100649,1754731841823,-460.0,0.00021917,2]
[378100650,1754731841832,-460.0,0.00021917,2]
[378100651,1754731841842,-460.0,0.00021917,2]
[378100652,1754731841851,-460.0,0.00021917,2]
[378100653,1754731841860,-3394.68,0.00021917,2]
[378100654,1754731841870,-460.0,0.00021917,2]
[378100655,1754731841879,-410.77087524,0.00021917,2]
[378100656,1754731841890,-460.0,0.00021917,2]
[378100657,1754731841900,-460.0,0.00021917,2]
[378100658,1754731841910,-460.0,0.00021917,2]
[378100659,1754731841920,-450.72273337,0.00021917,2]
[378100660,1754731841929,-460.0,0.00021917,2]
[378100661,1754731841940,-460.0,0.00021917,2]
[378100662,1754731841949,-460.0,0.00021917,2]
[378100663,1754731841959,-460.0,0.00021917,2]
[378100664,1754731841968,-158.7591481,0.00021918,2]
[378100665,1754731841978,-500.0,0.00021918,2]
[378100666,1754731841988,-500.0,0.00021918,2]
[378100667,1754731841997,-500.0,0.00021918,2]
[378100668,1754731842008,-500.0,0.00021918,2]
[378100669,1754731842019,-500.0,0.00021918,2]